bitfinex-derivatives/quotes_SOLF0:USTF0_20250501
["timestamp","ask_amount","ask_price","bid_price","bid_amount"]
[1746066053343,6.6874,149.53,149.48,24.06]
[1746066053544,26.0151,149.56,149.48,24.06]
[1746066053849,1.9051,149.55,149.48,24.06]
[1746066054046,6.688,149.52,149.49,6.689]
[1746066055549,6.6882,149.51,149.49,6.689]
[1746066056248,6.6879,149.52,149.49,6.689]
[1746066060447,6.6879,149.52,149.5,6.6886]
[1746066060649,6.6879,149.52,149.48,24.06]
[1746066061147,6.6879,149.52,149.49,6.6886]
[1746066062051,6.6874,149.53,149.48,24.06]
[1746066062248,26.0151,149.56,149.48,24.06]
[1746066062645,7.07009694,149.53,149.35,23.45918092]
[1746066062845,24.04,149.52,149.41,6.0956]
[1746066063351,6.6893,149.49,149.44,6.691]
[1746066063950,6.6896,149.48,149.44,6.691]
[1746066064152,6.6896,149.48,149.43,6.6916]
[1746066064451,6.6898,149.48,149.41,6.0956]
[1746066064655,6.6898,149.48,149.44,6.6912]
[1746066065152,6.69,149.47,149.43,6.6915]
[1746066065545,6.69,149.47,149.41,6.0956]
[1746066066351,6.69,149.47,149.41,2.0437]
[1746066066545,24.04,149.48,149.41,2.0437]
[1746066066749,24.04,149.48,149.41,4.0298]
[1746066067044,6.6907,149.46,149.42,6.6918]
[1746066067249,24.04,149.48,149.41,4.0298]
[1746066067553,6.69,149.47,149.43,6.6913]
[1746066067753,6.69,149.47,149.41,4.0298]
[1746066068049,30.7296,149.48,149.44,6.6911]
[1746066068246,24.04,149.48,149.41,4.0298]
[1746066068753,24.04,149.48,149.45,6.6907]
[1746066069253,30.7295,149.48,149.44,6.6911]
[1746066069552,24.04,149.48,149.44,6.6911]
[1746066070053,30.7296,149.48,149.44,6.6911]
[1746066070250,30.7296,149.48,149.45,6.6907]
[1746066071053,30.7296,149.48,149.44,6.6911]
[1746066072053,6.69,149.47,149.44,6.6911]
[1746066072958,6.69,149.47,149.43,6.6915]
[1746066073759,6.69,149.47,149.44,6.6913]
[1746066074349,24.04,149.48,149.44,6.6913]
[1746066074753,30.7295,149.48,149.44,6.6913]
[1746066077264,6.6901,149.47,149.43,6.6915]
[1746066077655,6.6901,149.47,149.4,28.0694]
[1746066078262,24.04,149.48,149.4,28.0694]
[1746066078460,24.04,149.48,149.4,29.972]
[1746066078757,6.6899,149.47,149.44,6.691]
[1746066079161,24.04,149.48,149.44,6.691]
[1746066079757,30.7297,149.48,149.44,6.691]
[1746066081664,30.7297,149.48,149.45,6.6907]
[1746066082065,6.6899,149.47,149.4,29.972]
[1746066084058,6.6899,149.47,149.43,6.6914]
[1746066084258,529.86,149.54,149.4,29.972]
[1746066084464,24.06,149.53,149.42,7.07009694]
[1746066084667,27.8736,149.53,149.42,7.07009694]
[1746066085265,6.6889,149.5,149.47,6.6897]
[1746066085665,27.8736,149.53,149.42,7.07009694]
[1746066085863,6.6891,149.49,149.46,6.6901]
[1746066090669,6.6896,149.48,149.45,6.6907]
[1746066091163,27.8736,149.53,149.45,6.6907]
[1746066091368,7.07009694,149.52,149.45,6.6907]
[1746066091769,7.07009694,149.52,149.44,6.6911]
[1746066091969,7.07009694,149.52,149.4,29.972]
[1746066092271,7.07009694,149.52,149.43,6.6916]
[1746066093173,6.6911,149.45,149.4,26.1038]
[1746066093868,24.04,149.47,149.37,24.04]
[1746066094173,7.07009694,149.46,149.37,24.04]
[1746066094974,6.6924,149.42,149.39,6.6934]
[1746066095473,24.04,149.43,149.37,24.04]
[1746066095675,30.7318,149.43,149.4,6.6928]
[1746066101677,24.04,149.43,149.37,24.04]
[1746066102687,24.04,149.43,149.42,6.6922]
[1746066103185,24.04,149.43,149.37,24.04]
[1746066104193,24.04,149.43,149.41,6.6924]
[1746066104389,24.04,149.43,149.37,24.04]
[1746066104990,24.04,149.43,149.42,6.6922]
[1746066107083,24.04,149.43,149.37,24.04]
[1746066107489,30.7318,149.43,149.37,24.04]
[1746066107692,30.7318,149.43,149.4,6.6928]
[1746066108997,24.04,149.43,149.41,6.6926]
[1746066109293,24.04,149.43,149.37,24.04]
[1746066109598,24.04,149.46,149.37,24.04]
[1746066109799,24.04,149.46,149.38,7.07009694]
[1746066110197,24.04,149.46,149.43,6.6914]
[1746066111196,24.04,149.46,149.44,6.6911]
[1746066111499,24.04,149.46,149.39,2.0402]
[1746066111999,24.04,149.46,149.44,6.6912]
[1746066113904,24.04,149.46,149.45,6.6908]
[1746066114103,24.04,149.46,149.4,2.0502]
[1746066114397,4.0916,149.48,149.4,2.0502]
[1746066114599,6.6899,149.47,149.4,2.0502]
[1746066115096,10.7812,149.48,149.44,6.6912]
[1746066115703,6.69,149.47,149.44,6.6912]
[1746066117002,2.0166,149.48,149.45,6.6907]
[1746066119006,2.0166,149.48,149.41,24.04]
[1746066119603,30.7293,149.49,149.41,24.04]
[1746066120305,30.7293,149.49,149.46,6.6903]
[1746066121006,6.6893,149.49,149.46,6.6903]
[1746066121707,30.7289,149.5,149.47,6.6898]
[1746066122506,30.7289,149.5,149.46,6.6902]
[1746066122803,6.6891,149.49,149.46,6.6902]
[1746066131911,6.6896,149.48,149.45,6.6907]
[1746066132313,24.04,149.5,149.41,31.11009694]
[1746066132512,6.6891,149.49,149.41,31.11009694]
[1746066135708,6.6891,149.49,149.46,6.6901]
[1746066137116,6.6895,149.48,149.45,6.6906]
[1746066137614,11.20230416,149.49,149.46,6.6903]
[1746066140517,11.20230416,149.49,149.47,6.6899]
[1746066141817,11.20230416,149.49,149.46,6.6901]
[1746066142319,6.6897,149.48,149.45,6.6906]
[1746066142614,4.51310416,149.49,149.42,4.51310416]
[1746066143009,6.6897,149.48,149.45,6.6908]
[1746066143209,4.51310416,149.49,149.42,4.51310416]
[1746066143414,6.6902,149.47,149.44,6.691]
[1746066143914,6.6897,149.48,149.45,6.6907]
[1746066146717,4.51310416,149.49,149.42,4.51310416]
[1746066146718,4.51310416,149.49,149.44,6.6911]
[1746066147417,6.6902,149.47,149.44,6.6911]
[1746066147617,4.51310416,149.45,149.39,2.0402]
[1746066147816,4.51310416,149.43,149.36,4.51310416]
[1746066148020,6.6925,149.42,149.36,4.51310416]
[1746066148318,6.6925,149.42,149.38,6.6935]
[1746066148522,6.6925,149.42,149.36,4.51310416]
[1746066149220,6.6925,149.42,149.35,30.0015]
[1746066149521,30.7117,149.44,149.35,30.0015]
[1746066150322,24.02,149.47,149.37,7.05722796]
[1746066151719,24.02,149.47,149.44,6.691]
[1746066152317,30.7099,149.47,149.44,6.691]
[1746066153021,6.6904,149.46,149.42,6.6917]
[1746066153220,31.07722796,149.47,149.37,31.05722796]
[1746066153521,4.0729,149.46,149.37,24.0]
[1746066153720,6.1109,149.46,149.37,24.0]
[1746066153926,6.1109,149.46,149.39,6.6932]
[1746066153927,6.6921,149.43,149.39,6.6932]
[1746066155321,6.6921,149.43,149.4,6.693]
[1746066156626,6.6923,149.42,149.39,6.6933]
[1746066157229,30.6919,149.43,149.4,6.693]
[1746066157834,28.0729,149.46,149.37,31.05722796]
[1746066158025,26.0001,149.46,149.37,31.05722796]
[1746066158226,24.0,149.46,149.44,6.6913]
[1746066158426,24.0,149.46,149.37,31.05722796]
[1746066158640,24.0,149.46,149.45,6.6908]
[1746066158838,24.0,149.49,149.45,6.6908]
[1746066159033,24.0,149.49,149.41,25.9732]
[1746066159234,24.0,149.49,149.41,27.9435]
[1746066160142,24.0,149.49,149.41,30.0128]
[1746066160640,30.6892,149.49,149.46,6.6901]
[1746066161443,24.0,149.49,149.46,6.6901]
[1746066162541,30.6891,149.49,149.46,6.6901]
[1746066162734,30.6891,149.49,149.45,6.6905]
[1746066162929,30.6891,149.49,149.41,30.0128]
[1746066165245,30.6891,149.49,149.45,6.6905]
[1746066166038,6.6896,149.48,149.45,6.6905]
[1746066166237,24.0,149.49,149.43,6.6917]
[1746066166642,6.6902,149.47,149.41,24.0]
[1746066167046,6.6902,149.47,149.44,6.691]
[1746066168745,6.6905,149.46,149.43,6.6917]
[1746066168949,24.0,149.49,149.41,24.0]
[1746066169445,6.6906,149.46,149.43,6.6917]
[1746066169947,6.6908,149.45,149.42,6.692]
[1746066170448,6.6906,149.46,149.42,6.692]
[1746066170639,6.6906,149.46,149.43,6.6917]
[1746066171248,6.6909,149.45,149.42,6.692]
[1746066171744,24.0,149.49,149.41,24.0]
[1746066172040,6.6901,149.47,149.41,24.0]
[1746066172247,24.0,149.49,149.4,2.033]
[1746066172639,6.6911,149.45,149.41,6.6926]
[1746066177352,6.6914,149.44,149.4,8.726]
[1746066177545,6.6914,149.44,149.4,6.693]
[1746066179449,24.0,149.45,149.4,6.693]
[1746066179450,6.6918,149.43,149.4,6.693]
[1746066179648,24.0,149.45,149.39,6.6933]
[1746066179856,24.0,149.45,149.38,24.0]
[1746066180051,6.6923,149.42,149.38,24.0]
[1746066180253,6.6923,149.42,149.38,30.6936]
[1746066180450,6.6923,149.42,149.38,24.0]
[1746066181254,6.6923,149.42,149.39,6.6934]
[1746066181558,6.6923,149.42,149.34,2.0296]
[1746066181559,7.05722796,149.44,149.35,24.0]
[1746066181751,7.05722796,149.44,149.36,6.6947]
[1746066182154,6.6938,149.39,149.36,6.6947]
[1746066182352,6.6938,149.39,149.35,30.6951]
[1746066182657,6.6938,149.39,149.35,24.0]
[1746066183157,6.6938,149.39,149.36,6.6948]
[1746066185954,24.0,149.41,149.34,2.0296]
[1746066186255,24.0,149.44,149.34,2.0296]
[1746066186758,6.6922,149.42,149.34,2.0296]
[1746066187753,24.0,149.44,149.34,2.0296]
[1746066188761,6.6922,149.42,149.39,6.6932]
[1746066189059,31.05722796,149.44,149.36,24.0]
[1746066189358,6.693,149.41,149.37,6.694]
[1746066189556,6.693,149.41,149.34,2.0296]
[1746066189757,31.05722796,149.44,149.34,2.0296]
[1746066190060,31.05722796,149.44,149.39,6.6935]
[1746066190061,6.6924,149.42,149.39,6.6935]
[1746066191062,6.6918,149.43,149.4,6.693]
[1746066191363,6.6918,149.43,149.34,2.0296]
[1746066191661,6.6918,149.43,149.39,6.6932]
[1746066192158,30.6915,149.44,149.35,7.05722796]
[1746066192953,6.6919,149.43,149.4,6.6928]
[1746066193154,24.0,149.44,149.37,24.0]
[1746066194165,30.6914,149.44,149.41,6.6926]
[1746066195266,24.0,149.44,149.42,6.692]
[1746066195663,6.6909,149.45,149.42,6.692]
[1746066196368,6.6909,149.45,149.41,6.6924]
[1746066196961,6.6914,149.44,149.41,6.6924]
[1746066199269,4.0128,149.46,149.37,24.0]
[1746066199666,4.0128,149.46,149.34,2.0296]
[1746066199874,4.0128,149.46,149.34,26.0296]
[1746066201170,6.6931,149.4,149.34,26.0296]
[1746066201574,24.0,149.42,149.34,26.0296]
[1746066201774,6.6933,149.4,149.37,6.6944]
[1746066203172,6.6933,149.4,149.38,6.6939]
[1746066204366,6.6933,149.4,149.37,6.6942]
[1746066206874,6.6928,149.41,149.34,26.0296]
[1746066207869,6.6928,149.41,149.38,6.6937]
[1746066208269,30.6924,149.42,149.34,26.0296]
[1746066208469,30.6924,149.42,149.39,6.6932]
[1746066208777,24.0,149.42,149.34,26.0296]
[1746066209070,30.6924,149.42,149.34,26.0296]
[1746066210176,30.6924,149.42,149.39,6.6935]
[1746066212379,30.6922,149.42,149.39,6.6933]
[1746066212971,25.9248,149.45,149.34,26.0296]
[1746066213173,23.98,149.45,149.37,7.05722796]
[1746066213378,23.98,149.48,149.4,7.05722796]
[1746066213571,23.98,149.48,149.44,6.6909]
[1746066213572,6.6901,149.47,149.44,6.6909]
[1746066213776,6.6901,149.47,149.4,31.03722796]
[1746066213995,6.6909,149.45,149.4,23.98]
[1746066214783,6.6909,149.45,149.42,6.6919]
[1746066215483,6.6906,149.46,149.43,6.6917]
[1746066218086,23.98,149.48,149.4,23.98]
[1746066218281,7.05722796,149.44,149.29,925.00990835]
[1746066218479,26.045,149.43,149.32,25.9853]
[1746066218679,6.6936,149.39,149.35,6.6952]
[1746066219286,6.6941,149.38,149.35,6.6952]
[1746066220687,6.6937,149.39,149.35,6.6952]
[1746066220880,6.6937,149.39,149.36,6.6947]
[1746066221690,6.6937,149.39,149.35,6.6951]
[1746066224489,6.6942,149.38,149.35,6.6951]
[1746066224891,27.9558,149.43,149.32,25.9853]
[1746066225892,6.694,149.38,149.35,6.695]
[1746066226095,6.694,149.38,149.32,25.9853]
[1746066227299,6.6938,149.39,149.35,6.6949]
[1746066230496,6.6941,149.38,149.35,6.6949]
[1746066231100,6.6947,149.37,149.34,6.6956]
[1746066231301,24.0,149.39,149.32,23.98]
[1746066231501,24.0,149.39,149.29,554.08]
[1746066231701,9.13462796,149.38,149.29,24.0]
[1746066232401,1.98,149.37,149.29,24.0]
[1746066232902,6.6955,149.35,149.31,6.697]
[1746066233200,24.0,149.35,149.31,6.697]
[1746066233500,30.6955,149.35,149.31,6.697]
[1746066234606,6.6959,149.34,149.31,6.697]
[1746066235207,30.6954,149.35,149.31,6.697]
[1746066235505,24.0,149.35,149.31,6.697]
[1746066236506,6.6958,149.34,149.31,6.697]
[1746066236706,24.0,149.35,149.32,6.6966]
[1746066236903,24.0,149.35,149.29,24.0]
[1746066237102,6.6947,149.37,149.29,24.0]
[1746066237308,6.6947,149.37,149.33,6.6959]
[1746066237811,6.6949,149.36,149.33,6.6959]
[1746066239310,6.6949,149.36,149.32,6.6965]
[1746066240112,33.13462796,149.38,149.31,6.697]
[1746066240611,6.6957,149.35,149.32,6.6966]
[1746066241012,33.13462796,149.38,149.29,24.0]
[1746066241312,6.6951,149.36,149.29,24.0]
[1746066241521,532.3683,149.41,149.29,31.05722796]
[1746066241815,6.6936,149.39,149.36,6.6946]
[1746066242015,24.0,149.41,149.33,24.0]
[1746066242214,30.6928,149.41,149.33,24.0]
[1746066242915,30.6928,149.41,149.38,6.6939]
[1746066243716,30.6928,149.41,149.37,6.6942]
[1746066245217,6.6932,149.4,149.37,6.6942]
[1746066245917,6.6932,149.4,149.36,6.6946]
[1746066246418,6.6932,149.4,149.33,24.0]
[1746066247014,2.0285,149.43,149.33,24.0]
[1746066247221,23.98,149.44,149.35,7.05722796]
[1746066247420,6.6924,149.42,149.38,6.6936]
[1746066248821,6.6924,149.42,149.39,6.6932]
[1746066252523,23.98,149.44,149.33,24.0]
[1746066253022,6.6927,149.41,149.37,6.694]
[1746066253921,6.6931,149.4,149.37,6.694]
[1746066258027,23.98,149.44,149.35,6.695]
[1746066258625,1.9507,149.43,149.35,6.695]
[1746066258825,6.6942,149.38,149.35,6.695]
[1746066262423,23.98,149.4,149.33,24.0]
[1746066262623,23.98,149.4,149.3,558.2441]
[1746066263327,11.19662796,149.42,149.32,7.05722796]
[1746066263527,23.98,149.44,149.32,7.05722796]
[1746066263920,6.6927,149.41,149.38,6.6939]
[1746066265426,6.6924,149.42,149.39,6.6934]
[1746066265622,6.6924,149.42,149.35,23.98]
[1746066265831,23.98,149.44,149.36,1.9187]
[1746066266032,6.692,149.43,149.4,6.6928]
[1746066267030,30.6714,149.44,149.41,6.6923]
[1746066269828,6.6918,149.43,149.4,6.6929]
[1746066270533,23.98,149.44,149.36,6.0181]
[1746066270731,23.98,149.44,149.36,3.9869]
[1746066271135,6.693,149.41,149.38,6.6937]
[1746066273138,6.6931,149.4,149.37,6.6942]
[1746066273338,23.98,149.44,149.36,3.9869]
[1746066274234,6.692,149.43,149.39,6.6932]
[1746066274434,6.692,149.43,149.36,3.9869]
[1746066274636,23.98,149.44,149.36,3.9869]
[1746066274835,30.6716,149.44,149.4,6.6928]
[1746066275740,30.6716,149.44,149.36,3.9869]
[1746066275944,30.6716,149.44,149.41,6.6925]
[1746066276144,6.6917,149.43,149.36,3.9869]
[1746066277346,6.6923,149.42,149.36,3.9869]
[1746066278040,6.6919,149.43,149.36,3.9869]
[1746066278947,6.6919,149.43,149.4,6.693]
[1746066280844,23.98,149.44,149.41,6.6923]
[1746066281147,23.98,149.44,149.36,3.9869]
[1746066282148,6.6921,149.43,149.39,6.6933]
[1746066284052,6.6922,149.42,149.39,6.6933]
[1746066284352,23.98,149.44,149.4,6.693]
[1746066285252,6.6921,149.43,149.4,6.693]
[1746066285556,23.98,149.44,149.36,3.9869]
[1746066286250,23.98,149.44,149.41,6.6923]
[1746066286654,30.6714,149.44,149.41,6.6923]
[1746066289361,23.98,149.44,149.36,3.9869]
[1746066289657,23.98,149.44,149.36,1.9187]
[1746066289857,6.6924,149.42,149.38,6.6938]
[1746066290058,6.6924,149.42,149.36,1.9187]
[1746066290461,6.6924,149.42,149.39,6.6933]
[1746066290956,23.98,149.44,149.36,1.9187]
[1746066291459,30.6716,149.44,149.41,6.6924]
[1746066292162,6.691,149.45,149.42,6.6918]
[1746066293260,6.691,149.45,149.41,6.6924]
[1746066293967,6.6913,149.44,149.41,6.6924]
[1746066294168,28.005,149.47,149.39,23.96]
[1746066295169,6.6922,149.42,149.39,30.6532]
[1746066296063,6.6926,149.41,149.39,23.96]
[1746066296264,7.05722796,149.45,149.39,23.96]
[1746066296460,7.05722796,149.45,149.36,25.8787]
[1746066297171,6.6924,149.42,149.36,25.8787]
[1746066297670,6.6924,149.42,149.39,6.6934]
[1746066298169,6.6932,149.4,149.37,6.6942]
[1746066301263,6.6932,149.4,149.36,6.6945]
[1746066301463,6.6932,149.4,149.33,23.96]
[1746066301666,6.6932,149.4,149.36,6.6945]
[1746066302171,6.6932,149.4,149.33,23.96]
[1746066303173,6.6932,149.4,149.37,6.6944]
[1746066303672,4.1747,149.41,149.33,23.96]
[1746066304270,6.6947,149.37,149.33,23.96]
[1746066304471,6.6947,149.37,149.33,6.6959]
[1746066305572,30.6341,149.38,149.31,2.0645]
[1746066306174,6.6944,149.37,149.34,6.6954]
[1746066308576,30.6341,149.38,149.35,6.6953]
[1746066309179,6.6945,149.37,149.34,6.6955]
[1746066313478,6.6949,149.36,149.33,6.696]
[1746066313682,23.94,149.38,149.3,23.94]
[1746066314074,26.0233,149.38,149.3,23.94]
[1746066314281,6.6956,149.35,149.31,6.6967]
[1746066314679,26.0233,149.38,149.31,6.6967]
[1746066315280,6.6956,149.35,149.32,6.6966]
[1746066315676,26.0233,149.38,149.3,23.94]
[1746066316083,6.6946,149.37,149.34,6.6955]
[1746066316479,6.6946,149.37,149.3,23.94]
[1746066317582,6.6949,149.36,149.3,23.94]
[1746066318086,6.6945,149.37,149.34,6.6955]
[1746066324188,6.6945,149.37,149.35,6.6952]
[1746066324390,6.6945,149.37,149.3,23.94]
[1746066324685,6.6945,149.37,149.34,6.6955]
[1746066325188,30.634,149.38,149.35,6.695]
[1746066325487,28.1147,149.41,149.32,7.05722796]
[1746066325888,6.6939,149.39,149.35,6.695]
[1746066326392,6.694,149.38,149.35,6.695]
[1746066328793,6.6944,149.37,149.35,6.695]
[1746066329595,6.695,149.36,149.3,25.9126]
[1746066330395,23.94,149.37,149.3,23.94]
[1746066330787,23.94,149.37,149.28,2.1113]
[1746066331696,6.6956,149.35,149.28,2.1113]
[1746066333198,6.6956,149.35,149.32,6.6965]
[1746066335696,6.6956,149.35,149.28,2.1113]
[1746066335697,6.695,149.36,149.33,6.6962]
[1746066338497,6.6954,149.35,149.33,6.6962]
[1746066338897,6.6954,149.35,149.32,6.6964]
[1746066339902,6.6949,149.36,149.33,6.6961]
[1746066340498,6.6953,149.35,149.33,6.6961]
[1746066341902,6.6953,149.35,149.32,6.6963]
[1746066343901,6.695,149.36,149.33,6.6959]
[1746066346006,6.6954,149.35,149.33,6.6959]
[1746066347106,6.6951,149.36,149.33,6.6959]
[1746066347605,6.6953,149.35,149.33,6.6959]
[1746066348305,6.6953,149.35,149.32,6.6964]
[1746066349307,6.6953,149.35,149.33,6.6961]
[1746066349507,6.6951,149.36,149.33,6.6961]
[1746066351007,6.6954,149.35,149.32,6.6964]
[1746066351211,23.94,149.37,149.32,6.6964]
[1746066351607,6.6955,149.35,149.32,6.6964]
[1746066354909,30.99722796,149.37,149.27,25.9013]
[1746066355110,4.093,149.36,149.27,25.9013]
[1746066355711,6.6965,149.33,149.3,6.6973]
[1746066356007,4.093,149.36,149.27,25.9013]
[1746066356212,6.696,149.34,149.31,6.6968]
[1746066357105,6.696,149.34,149.27,25.9013]
[1746066357608,6.696,149.34,149.31,6.6969]
[1746066359811,6.6954,149.35,149.32,6.6966]
[1746066360613,23.94,149.37,149.27,25.9013]
[1746066360803,23.94,149.37,149.29,7.05722796]
[1746066361111,23.94,149.37,149.36,6.6948]
[1746066361410,6.6937,149.39,149.36,6.6948]
[1746066365011,6.6937,149.39,149.35,6.6951]
[1746066365311,6.694,149.38,149.35,6.6951]
[1746066365508,28.0177,149.4,149.32,23.92]
[1746066365716,28.0177,149.4,149.31,1.963]
[1746066365717,35.07492796,149.4,149.31,1.963]
[1746066365906,6.696,149.34,149.31,1.963]
[1746066366212,6.696,149.34,149.31,8.6598]
[1746066366613,6.6962,149.33,149.31,8.6598]
[1746066367215,23.9,149.36,149.32,6.6966]
[1746066367615,23.9,149.36,149.31,1.963]
[1746066369214,30.5951,149.36,149.33,6.6962]
[1746066369414,23.9,149.36,149.31,1.963]
[1746066369614,23.9,149.39,149.31,1.963]
[1746066370916,23.9,149.39,149.31,9.02022796]
[1746066371215,23.9,149.39,149.32,2.0103]
[1746066371414,30.5937,149.39,149.35,6.6951]
[1746066371615,30.5937,149.39,149.33,23.9]
[1746066373216,30.5937,149.39,149.36,6.6948]
[1746066373722,23.9,149.39,149.36,6.6946]
[1746066376316,30.5936,149.39,149.36,6.6946]
[1746066376918,6.694,149.38,149.35,6.6951]
[1746066380722,30.5937,149.39,149.36,6.6948]
[1746066381016,23.9,149.39,149.33,23.9]
[1746066382120,23.9,149.39,149.37,6.6942]
[1746066382420,6.6933,149.4,149.37,6.6942]
[1746066389526,6.6936,149.39,149.36,6.6945]
[1746066391230,6.6936,149.39,149.37,6.6944]
[1746066391528,6.6936,149.39,149.33,23.9]
[1746066393130,6.6936,149.39,149.36,6.6948]
[1746066393736,4.51861171,149.4,149.35,6.6951]
[1746066393737,6.694,149.38,149.35,6.6951]
[1746066395539,6.6937,149.39,149.36,6.6948]
[1746066397942,4.51861171,149.38,149.33,23.9]
[1746066398138,4.51861171,149.38,149.31,6.48161171]
[1746066398440,6.6956,149.35,149.32,6.6966]
[1746066399645,11.21371171,149.36,149.33,6.6961]
[1746066400045,4.51861171,149.36,149.33,6.6961]
[1746066400544,4.51861171,149.36,149.34,6.6956]
[1746066400844,4.51861171,149.4,149.33,4.51861171]
[1746066401843,6.6938,149.39,149.36,6.6946]
[1746066402246,6.6938,149.39,149.33,4.51861171]
[1746066402542,1.9294,149.43,149.37,4.51861171]
[1746066402738,28.39861171,149.46,149.39,4.51861171]
[1746066402937,6.691,149.45,149.41,6.6923]
[1746066403141,28.39861171,149.46,149.41,6.6923]
[1746066403142,23.88,149.46,149.41,4.51861171]
[1746066403340,63.21642792,149.54,149.45,4.51861171]
[1746066403642,63.21642792,149.54,149.46,25.8969]
[1746066405044,63.21642792,149.54,149.46,28.001]
[1746066405244,69.90342792,149.54,149.49,6.6887]
[1746066405549,69.90342792,149.54,149.46,28.001]
[1746066405750,69.90342792,149.54,149.47,6.6896]
[1746066406552,63.21642792,149.54,149.46,28.001]
[1746066406749,11.05889547,149.59,149.46,28.001]
[1746066408153,7.04539547,149.54,149.46,2.0169]
[1746066408351,23.86,149.53,149.46,2.0169]
[1746066409050,6.6889,149.5,149.46,2.0169]
[1746066410051,6.6889,149.5,149.46,8.7069]
[1746066411354,6.6889,149.5,149.46,2.0169]
[1746066413152,6.6883,149.51,149.46,8.7068]
[1746066413344,6.6883,149.51,149.47,23.86]
[1746066414648,23.86,149.53,149.47,23.86]
[1746066415150,6.6877,149.52,149.47,30.5496]
[1746066416251,6.6883,149.51,149.47,30.5496]
[1746066416951,6.6879,149.52,149.47,30.5496]
[1746066417253,7.04539547,149.54,149.47,30.5496]
[1746066417753,6.6877,149.52,149.47,30.5496]
[1746066418853,6.6881,149.51,149.47,30.5496]
[1746066420557,7.04539547,149.54,149.47,23.86]
[1746066420853,23.86,149.56,149.44,23.84]
[1746066420854,7.04539547,149.51,149.44,23.84]
[1746066421455,6.6899,149.48,149.44,30.531]
[1746066422454,6.6899,149.48,149.45,6.6908]
[1746066422957,6.6892,149.49,149.45,6.6908]
[1746066423554,6.6895,149.48,149.45,6.6908]
[1746066424749,7.04539547,149.51,149.44,23.84]
[1746066424952,7.04539547,149.54,149.44,23.84]
[1746066425150,6.6874,149.53,149.49,6.689]
[1746066425357,7.04539547,149.54,149.44,23.84]
[1746066425550,23.86,149.55,149.45,23.86]
[1746066425745,6.6873,149.53,149.46,2.0313]
[1746066426358,6.6873,149.53,149.49,6.6888]
[1746066426658,23.84,149.62,149.46,9.07669547]
[1746066426857,7.04539547,149.63,149.57,6.6852]
[1746066427362,6.6835,149.62,149.56,6.6855]
[1746066427550,6.6835,149.62,149.55,23.84]
[1746066427750,6.6837,149.61,149.55,23.84]
[1746066427955,7.04539547,149.63,149.55,23.84]
[1746066428254,25.905,149.65,149.55,23.84]
[1746066428255,6.6849,149.59,149.55,23.84]
[1746066428859,7.04539547,149.6,149.5,1.9355]
[1746066429060,7.04539547,149.57,149.51,6.6878]
[1746066429246,7.04539547,149.57,149.5,1.9355]
[1746066429753,7.04539547,149.57,149.53,6.6871]
[1746066430653,7.04539547,149.57,149.54,6.6867]
[1746066430859,7.04539547,149.57,149.5,1.9355]
[1746066431157,6.6862,149.56,149.52,6.6876]
[1746066432158,6.6862,149.56,149.5,1.9355]